bitfinex-derivatives/quotes_BTCF0:USTF0_20250517
["timestamp","ask_amount","ask_price","bid_price","bid_amount"]
[1747516667300,0.59486612,103400.0,103390.0,0.10313433]
[1747516667500,0.95566612,103400.0,103390.0,0.10313433]
[1747516669101,1.07733128,103400.0,103390.0,0.10313433]
[1747516669400,0.95566612,103400.0,103390.0,0.10313433]
[1747516670399,1.07733128,103400.0,103390.0,0.10313433]
[1747516671105,0.95566612,103400.0,103390.0,0.10313433]
[1747516671904,1.07733128,103400.0,103390.0,0.10313433]
[1747516672407,0.71653128,103400.0,103390.0,0.10313433]
[1747516672605,1.07733128,103400.0,103390.0,0.10313433]
[1747516675312,0.95566612,103400.0,103390.0,0.10313433]
[1747516679413,1.07733128,103400.0,103390.0,0.10313433]
[1747516679803,0.95566612,103400.0,103390.0,0.10313433]
[1747516681005,1.07733128,103400.0,103390.0,0.10313433]
[1747516681414,0.71653128,103400.0,103390.0,0.10313433]
[1747516681614,1.07733128,103400.0,103390.0,0.10313433]
[1747516683113,1.10823128,103400.0,103390.0,0.10313433]
[1747516683607,1.10823128,103400.0,103390.0,0.04233433]
[1747516684419,1.10823128,103400.0,103390.0,0.01093433]
[1747516684618,0.1933621,103390.0,103380.0,0.0942]
[1747516684808,1.40388572,103390.0,103380.0,0.0312]
[1747516685005,1.40388572,103390.0,103380.0,0.0638]
[1747516685310,1.12702726,103390.0,103380.0,0.0942]
[1747516685505,0.70862726,103390.0,103380.0,0.0942]
[1747516685718,0.70862726,103390.0,103380.0,0.2875808]
[1747516686119,0.70862726,103390.0,103380.0,0.0942]
[1747516686322,0.95458572,103390.0,103380.0,0.0942]
[1747516687117,0.95558572,103390.0,103380.0,0.0942]
[1747516692511,0.95558572,103390.0,103380.0,0.0312]
[1747516692724,0.98888572,103390.0,103380.0,0.0312]
[1747516693019,0.98888572,103390.0,103380.0,0.0636]
[1747516693626,0.98888572,103390.0,103380.0,0.096]
[1747516694210,1.19796572,103390.0,103380.0,0.096]
[1747516694828,0.98888572,103390.0,103380.0,0.096]
[1747516695123,1.16482572,103390.0,103380.0,0.096]
[1747516695421,0.83392056,103390.0,103380.0,0.2893807]
[1747516695615,0.95558572,103390.0,103380.0,0.2893807]
[1747516695816,0.59478572,103390.0,103380.0,0.096]
[1747516696324,0.59478572,103390.0,103380.0,0.2893808]
[1747516696523,0.59478572,103390.0,103380.0,0.096]
[1747516697125,0.59478572,103390.0,103380.0,0.276]
[1747516697424,0.59478572,103390.0,103380.0,0.4693808]
[1747516697825,0.59478572,103390.0,103380.0,0.276]
[1747516699629,0.95558572,103390.0,103380.0,0.276]
[1747516700224,0.95558572,103390.0,103380.0,0.096]
[1747516701224,0.98788572,103390.0,103380.0,0.096]
[1747516701619,0.77222726,103390.0,103380.0,0.096]
[1747516701821,0.98788572,103390.0,103380.0,0.0636]
[1747516702226,0.98788572,103390.0,103380.0,0.0312]
[1747516703930,0.99771309,103390.0,103380.0,0.0312]
[1747516705631,0.98788572,103390.0,103380.0,0.0312]
[1747516705831,0.98788572,103390.0,103380.0,0.0621]
[1747516706024,0.98788572,103390.0,103380.0,0.0927]
[1747516706226,1.25184056,103390.0,103380.0,0.0927]
[1747516706435,1.37350572,103390.0,103380.0,0.0927]
[1747516706836,0.95558572,103390.0,103380.0,0.0927]
[1747516707732,0.59478572,103390.0,103380.0,0.0927]
[1747516708239,0.95558572,103390.0,103380.0,0.0927]
[1747516708534,0.59478572,103390.0,103380.0,0.0927]
[1747516708834,0.95558572,103390.0,103380.0,0.0927]
[1747516712228,0.98608572,103390.0,103380.0,0.0927]
[1747516718738,0.98608572,103390.0,103380.0,0.0312]
[1747516719345,0.98608572,103390.0,103380.0,0.08186904]
[1747516720143,0.98608572,103390.0,103380.0,0.11396904]
[1747516721341,0.98608572,103390.0,103380.0,0.0633]
[1747516721944,0.98608572,103390.0,103380.0,0.0944]
[1747516724741,0.98608572,103390.0,103380.0,0.14507336]
[1747516726049,0.98608572,103390.0,103380.0,0.0944]
[1747516732950,0.98608572,103390.0,103380.0,0.0633]
[1747516733251,0.1933808,103380.0,103370.0,0.03789148]
[1747516733452,1.52384958,103380.0,103370.0,0.03789148]
[1747516733657,0.83173926,103380.0,103370.0,0.06849148]
[1747516733854,0.59260442,103380.0,103370.0,0.13419148]
[1747516735057,0.59260442,103380.0,103370.0,0.13519148]
[1747516735254,0.59260442,103380.0,103370.0,0.13619148]
[1747516735551,0.95340442,103380.0,103370.0,0.13619148]
[1747516737961,0.98640442,103380.0,103370.0,0.09926735]
[1747516738357,0.83173926,103380.0,103370.0,0.09926735]
[1747516738559,0.95340442,103380.0,103370.0,0.09926735]
[1747516738757,1.16208442,103380.0,103370.0,0.09926735]
[1747516740655,1.28374958,103380.0,103370.0,0.09926735]
[1747516740847,1.31484958,103380.0,103370.0,0.03356735]
[1747516741051,1.39484958,103380.0,103370.0,0.03356735]
[1747516744757,1.78651474,103380.0,103370.0,0.03356735]
[1747516744958,1.43651474,103380.0,103370.0,0.03356735]
[1747516745163,1.44651474,103380.0,103370.0,0.03356735]
[1747516745458,1.32484958,103380.0,103370.0,0.03356735]
[1747516748062,1.44651474,103380.0,103370.0,0.03356735]
[1747516749165,1.44651474,103380.0,103370.0,0.00296735]
[1747516750663,1.32484958,103380.0,103370.0,0.00296735]
[1747516752263,1.44651474,103380.0,103370.0,0.00296735]
[1747516752467,1.32484958,103380.0,103370.0,0.00296735]
[1747516753157,1.44651474,103380.0,103370.0,0.00296735]
[1747516753358,1.32484958,103380.0,103370.0,0.00296735]
[1747516754368,1.32484958,103380.0,103370.0,0.03346735]
[1747516754867,1.53340958,103380.0,103370.0,0.03346735]
[1747516755067,1.11616958,103380.0,103370.0,0.03346735]
[1747516755262,1.53340958,103380.0,103370.0,0.03346735]
[1747516755459,1.53340958,103380.0,103360.0,0.0605]
[1747516755460,0.1933995,103370.0,103360.0,0.0605]
[1747516755661,0.98682312,103370.0,103360.0,0.0934]
[1747516755856,1.10848828,103370.0,103360.0,0.0329]
[1747516756468,1.10848828,103370.0,103360.0,0.0643]
[1747516756670,1.52568828,103370.0,103360.0,0.0968]
[1747516756869,1.40402312,103370.0,103360.0,0.0968]
[1747516757568,1.40402312,103370.0,103360.0,0.0988]
[1747516757774,1.40702312,103370.0,103360.0,0.0968]
[1747516757974,1.41002312,103370.0,103360.0,0.0948]
[1747516759379,1.53168828,103370.0,103360.0,0.0948]
[1747516760575,1.86168828,103370.0,103360.0,0.0948]
[1747516761477,1.86168828,103370.0,103360.0,0.0329]
[1747516763579,1.65316828,103370.0,103360.0,0.0329]
[1747516763779,1.86164828,103370.0,103360.0,0.0329]
[1747516764076,0.1934182,103360.0,103350.0,0.06533508]
[1747516764272,0.1934182,103360.0,103350.0,0.09803508]
[1747516764273,0.85994852,103360.0,103350.0,0.09803508]
[1747516765570,0.86094852,103360.0,103350.0,0.09803508]
[1747516766575,0.86194852,103360.0,103350.0,0.09803508]
[1747516767682,1.07760698,103360.0,103350.0,0.09803508]
[1747516770584,1.14760698,103360.0,103350.0,0.09803508]
[1747516770786,1.30007214,103360.0,103350.0,0.09803508]
[1747516770988,1.59007214,103360.0,103350.0,0.09803508]
[1747516771187,1.23007214,103360.0,103350.0,0.09803508]
[1747516771487,1.33007214,103360.0,103350.0,0.09803508]
[1747516771673,1.33007214,103360.0,103350.0,0.06623508]
[1747516773187,1.56007214,103360.0,103350.0,0.06623508]
[1747516775182,1.19927214,103360.0,103350.0,0.06623508]
[1747516775386,1.92087214,103360.0,103350.0,0.06623508]
[1747516775587,1.92087214,103360.0,103350.0,0.03463508]
[1747516775781,1.92087214,103360.0,103350.0,0.06533508]
[1747516776192,1.79927214,103360.0,103350.0,0.06533508]
[1747516776393,1.59087214,103360.0,103350.0,0.06533508]
[1747516776691,2.00775214,103360.0,103350.0,0.06533508]
[1747516776990,1.46920698,103360.0,103350.0,0.06533508]
[1747516777194,1.88608698,103360.0,103350.0,0.06533508]
[1747516778288,2.00775214,103360.0,103350.0,0.06533508]
[1747516778488,2.08775214,103360.0,103350.0,0.06533508]
[1747516779789,1.96604698,103360.0,103350.0,0.06533508]
[1747516780186,1.54920698,103360.0,103350.0,0.06533508]
[1747516780482,1.96604698,103360.0,103350.0,0.06533508]
[1747516780694,1.69191666,103360.0,103350.0,0.06533508]
[1747516780894,1.93524698,103360.0,103350.0,0.06533508]
[1747516781396,1.51840698,103360.0,103350.0,0.06533508]
[1747516781593,1.93524698,103360.0,103350.0,0.06533508]
[1747516784602,1.21364698,103360.0,103350.0,0.06533508]
[1747516784901,1.93524698,103360.0,103350.0,0.06533508]
[1747516785405,1.51840698,103360.0,103350.0,0.06533508]
[1747516785604,1.93520698,103360.0,103350.0,0.06533508]
[1747516787305,1.51840698,103360.0,103350.0,0.06533508]
[1747516788007,1.93520698,103360.0,103350.0,0.06533508]
[1747516788207,1.51840698,103360.0,103350.0,0.06533508]
[1747516788408,1.93520698,103360.0,103350.0,0.06533508]
[1747516788601,1.93720698,103360.0,103350.0,0.06533508]
[1747516789313,1.52240698,103360.0,103350.0,0.06533508]
[1747516789515,1.93920698,103360.0,103350.0,0.06533508]
[1747516789704,1.69587666,103360.0,103350.0,0.06533508]
[1747516789906,1.93920698,103360.0,103350.0,0.06533508]
[1747516790310,1.93916698,103360.0,103350.0,0.06533508]
[1747516790717,1.21756698,103360.0,103350.0,0.06533508]
[1747516790915,1.93916698,103360.0,103350.0,0.06533508]
[1747516791215,2.19916698,103360.0,103350.0,0.06533508]
[1747516791703,1.78240698,103360.0,103350.0,0.06533508]
[1747516791903,2.19916698,103360.0,103350.0,0.06533508]
[1747516792108,0.1934369,103350.0,103340.0,0.0326]
[1747516792411,0.73940206,103350.0,103340.0,0.0326]
[1747516792615,0.98736052,103350.0,103340.0,0.0326]
[1747516793210,0.99787025,103350.0,103340.0,0.0326]
[1747516793716,0.99887025,103350.0,103340.0,0.0326]
[1747516795012,0.1934556,103340.0,103330.0,0.03789186]
[1747516795219,0.73932076,103340.0,103330.0,0.24859186]
[1747516795521,0.73932076,103340.0,103330.0,0.31089186]
[1747516795815,0.94756076,103340.0,103330.0,0.31089186]
[1747516796215,0.94756076,103340.0,103330.0,0.31189186]
[1747516796817,0.94756076,103340.0,103330.0,0.31289186]
[1747516797920,0.70742076,103340.0,103330.0,0.31189186]
[1747516799018,0.70842076,103340.0,103330.0,0.31089186]
[1747516799318,0.70842076,103340.0,103330.0,0.36178583]
[1747516802112,0.74022076,103340.0,103330.0,0.36178583]
[1747516803222,1.07008592,103340.0,103330.0,0.18178583]
[1747516803429,1.31724438,103340.0,103330.0,0.18178583]
[1747516804417,1.31724438,103340.0,103330.0,0.1133617]
[1747516804612,1.31724438,103340.0,103330.0,0.06246773]
[1747516804813,1.31724438,103340.0,103330.0,0.00096773]
[1747516805311,1.31724438,103340.0,103330.0,0.18096773]
[1747516806219,0.1934743,103330.0,103320.0,0.03692413]
[1747516806421,1.19405792,103330.0,103320.0,0.03692413]
[1747516807127,1.19405792,103330.0,103320.0,0.21692413]
[1747516807516,1.19405792,103330.0,103320.0,0.21792413]
[1747516808322,1.19405792,103330.0,103320.0,0.21892413]
[1747516809119,1.19905792,103330.0,103320.0,0.21792413]
[1747516809524,1.19905792,103330.0,103320.0,0.28072413]
[1747516809525,1.20305792,103330.0,103320.0,0.28072413]
[1747516810023,1.20305792,103330.0,103320.0,0.2438]
[1747516812422,1.08139276,103330.0,103320.0,0.2438]
[1747516812627,1.20305792,103330.0,103320.0,0.2438]
[1747516813125,1.08139276,103330.0,103320.0,0.2438]
[1747516813426,1.20305792,103330.0,103320.0,0.2438]
[1747516817225,1.32472308,103330.0,103320.0,0.18]
[1747516819630,1.32472308,103330.0,103320.0,0.18544216]
[1747516820028,1.68472308,103330.0,103320.0,0.18544216]
[1747516828531,0.1934931,103320.0,103310.0,0.09928771]
[1747516828734,1.10066342,103320.0,103310.0,0.09928771]
[1747516829330,1.10066342,103320.0,103310.0,0.27928771]
[1747516829529,1.10266342,103320.0,103310.0,0.27928771]
[1747516829728,1.10566342,103320.0,103310.0,0.27928771]
[1747516833040,1.07266342,103320.0,103310.0,0.27928771]
[1747516833836,1.07266342,103320.0,103310.0,0.27949586]
[1747516834429,1.28832188,103320.0,103310.0,0.27949586]
[1747516834840,1.28832188,103320.0,103310.0,0.28493802]
[1747516835438,0.92752188,103320.0,103310.0,0.28493802]
[1747516835640,1.49632188,103320.0,103310.0,0.28493802]
[1747516842045,1.08028188,103320.0,103310.0,0.28493802]
[1747516842343,1.49628188,103320.0,103310.0,0.28493802]
[1747516845253,1.25295156,103320.0,103310.0,0.28493802]
[1747516845446,1.37461672,103320.0,103310.0,0.28493802]
[1747516847746,1.49628188,103320.0,103310.0,0.28493802]
[1747516848752,1.08028188,103320.0,103310.0,0.28493802]
[1747516848944,1.49620188,103320.0,103310.0,0.28493802]
[1747516852751,1.52830188,103320.0,103310.0,0.28493802]
[1747516855247,1.11238188,103320.0,103310.0,0.28493802]
[1747516855556,1.52826188,103320.0,103310.0,0.28493802]
[1747516859957,0.99071672,103320.0,103310.0,0.47844982]
[1747516860152,1.40631672,103320.0,103310.0,0.47844982]
[1747516860346,0.99071672,103320.0,103310.0,0.28493802]
[1747516860548,1.40631672,103320.0,103310.0,0.28493802]
[1747516863757,1.52798188,103320.0,103310.0,0.28493802]
[1747516864056,1.52798188,103320.0,103310.0,0.22596215]
[1747516864956,1.52798188,103320.0,103310.0,0.25776215]
[1747516866848,1.52798188,103320.0,103310.0,0.22596215]
[1747516868759,1.52798188,103320.0,103310.0,0.18903802]
[1747516872757,1.43398858,103320.0,103310.0,0.18903802]
[1747516872955,1.64964704,103320.0,103310.0,0.18903802]
[1747516873255,1.52798188,103320.0,103310.0,0.18903802]
[1747516873462,1.52798188,103320.0,103310.0,0.18758614]
[1747516889759,1.64964704,103320.0,103310.0,0.18758614]
[1747516891170,2.01044704,103320.0,103310.0,0.18758614]
[1747516891370,1.88878188,103320.0,103310.0,0.18758614]
[1747516891670,1.96878188,103320.0,103310.0,0.18758614]
[1747516891867,2.09044704,103320.0,103310.0,0.18758614]
[1747516897673,2.32044704,103320.0,103310.0,0.18758614]
[1747516899073,1.74765156,103320.0,103310.0,0.18758614]
[1747516899274,2.32012704,103320.0,103310.0,0.18758614]
[1747516900379,1.95513156,103320.0,103310.0,0.18758614]
[1747516900579,2.11264704,103320.0,103310.0,0.18758614]
[1747516900779,2.19846188,103320.0,103310.0,0.21838614]
[1747516900981,1.48318188,103320.0,103310.0,0.21838614]
[1747516901281,1.89814188,103320.0,103310.0,0.25008614]
[1747516903873,2.22814188,103320.0,103310.0,0.25008614]
[1747516904282,2.34980704,103320.0,103310.0,0.25008614]
[1747516904883,2.34980704,103320.0,103310.0,0.28018614]
[1747516910395,2.34980704,103320.0,103310.0,0.27997799]
[1747516912897,2.34980704,103320.0,103310.0,0.28018614]
[1747516918102,2.34980704,103320.0,103310.0,0.21838614]
[1747516918497,0.31517746,103310.0,103300.0,0.1618]
[1747516918696,0.95503592,103310.0,103300.0,0.1618]
[1747516919098,0.95503592,103310.0,103300.0,0.3418]
[1747516919289,1.07670108,103310.0,103300.0,0.3418]
[1747516919496,1.10760108,103310.0,103300.0,0.3418]
[1747516919692,0.98693592,103310.0,103300.0,0.3418]
[1747516919895,1.17860108,103310.0,103300.0,0.3111]
[1747516920093,1.05693592,103310.0,103300.0,0.3111]
[1747516920294,1.17860108,103310.0,103300.0,0.3111]
[1747516920801,0.1935311,103300.0,103290.0,0.03789223]
[1747516921000,1.52325988,103300.0,103290.0,0.03789223]
[1747516921202,1.52325988,103300.0,103290.0,0.24929223]
[1747516921398,1.52325988,103300.0,103290.0,0.21789223]
[1747516921805,1.97492504,103300.0,103290.0,0.21789223]
[1747516922199,1.64492504,103300.0,103290.0,0.21789223]
[1747516922503,1.64492504,103300.0,103290.0,0.25129223]
[1747516923010,1.64492504,103300.0,103290.0,0.21989223]
[1747516923011,1.52325988,103300.0,103290.0,0.21989223]
[1747516923599,1.53294971,103300.0,103290.0,0.21989223]
[1747516923796,1.53294971,103300.0,103290.0,0.21889223]
[1747516923998,1.53694971,103300.0,103290.0,0.21889223]
[1747516924206,1.54194971,103300.0,103290.0,0.21789223]
[1747516925203,1.54194971,103300.0,103290.0,0.22333439]
[1747516925709,1.54194971,103300.0,103290.0,0.25343439]
[1747516926409,1.54194971,103300.0,103290.0,0.28583439]
[1747516927310,1.32629125,103300.0,103290.0,0.28583439]
[1747516927510,1.54194971,103300.0,103290.0,0.28583439]
[1747516928307,1.29861939,103300.0,103290.0,0.28583439]
[1747516928504,1.54194971,103300.0,103290.0,0.28583439]
[1747516929806,1.54194971,103300.0,103290.0,0.31903439]
[1747516930010,1.54194971,103300.0,103290.0,0.28211026]
[1747516930914,1.38838455,103300.0,103290.0,0.28211026]
[1747516931209,0.97374455,103300.0,103290.0,0.28211026]
[1747516931513,1.18102455,103300.0,103290.0,0.28211026]
[1747516932799,1.30268971,103300.0,103290.0,0.28211026]
[1747516933818,0.94188971,103300.0,103290.0,0.28211026]
[1747516934115,1.30268971,103300.0,103290.0,0.28211026]
[1747516935712,1.33278971,103300.0,103290.0,0.28211026]
[1747516936818,1.08945939,103300.0,103290.0,0.28211026]
[1747516937117,1.33278971,103300.0,103290.0,0.28211026]
[1747516937312,1.11713125,103300.0,103290.0,0.28211026]
[1747516937618,1.21112455,103300.0,103290.0,0.28211026]
[1747516937810,1.33278971,103300.0,103290.0,0.28211026]
[1747516942621,1.33270971,103300.0,103290.0,0.28211026]
[1747516943319,1.08937939,103300.0,103290.0,0.28211026]
[1747516943618,1.33270971,103300.0,103290.0,0.28211026]
[1747516943818,1.32301988,103300.0,103290.0,0.28211026]
[1747516945714,1.11581988,103300.0,103290.0,0.28211026]
[1747516945911,1.32301988,103300.0,103290.0,0.28211026]
[1747516946817,1.07968956,103300.0,103290.0,0.28211026]
[1747516947019,1.32301988,103300.0,103290.0,0.28211026]
[1747516947317,1.07968956,103300.0,103290.0,0.28211026]
[1747516947518,1.32301988,103300.0,103290.0,0.28211026]
[1747516954012,1.53005988,103300.0,103290.0,0.28211026]
[1747516956615,1.28672956,103300.0,103290.0,0.28211026]
[1747516956818,1.53005988,103300.0,103290.0,0.28211026]
[1747516958219,1.28672956,103300.0,103290.0,0.28211026]
[1747516958424,1.53005988,103300.0,103290.0,0.28211026]
[1747516958624,1.11581988,103300.0,103290.0,0.28211026]
[1747516958924,0.4730511,103300.0,103290.0,0.47566006]
[1747516959227,0.16246516,103300.0,103290.0,0.47566006]
[1747516959428,0.35599616,103300.0,103290.0,0.47566006]
[1747516960323,0.229331,103300.0,103290.0,0.47566006]
[1747516960534,0.35399616,103300.0,103290.0,0.47566006]
[1747516961028,0.35299616,103300.0,103290.0,0.47566006]
[1747516962416,0.35299616,103300.0,103290.0,0.83646006]
[1747516962626,0.35299616,103300.0,103290.0,0.47566006]
[1747516963123,0.35299616,103300.0,103290.0,0.51266885]
[1747516964532,0.006,103300.0,103290.0,0.87346885]
[1747516964722,0.006,103300.0,103290.0,1.54898601]
[1747516965427,0.199531,103300.0,103290.0,1.54898601]
[1747516965927,0.196531,103300.0,103290.0,1.54898601]
[1747516966133,0.195531,103300.0,103290.0,1.54898601]
[1747516966338,0.002,103300.0,103290.0,1.56132228]
[1747516966527,0.195531,103300.0,103290.0,1.56132228]
[1747516966928,0.002,103300.0,103290.0,1.56132228]
[1747516967233,0.195531,103300.0,103290.0,1.56132228]
[1747516967435,0.18544281,103300.0,103290.0,1.56132228]
[1747516968236,0.3712697,103310.0,103300.0,0.1935311]
[1747516968430,0.3228882,103310.0,103300.0,0.8574511]
[1747516969227,0.3228882,103310.0,103300.0,1.0374511]
[1747516969837,0.3248882,103310.0,103300.0,1.0374511]
[1747516970033,0.278507,103310.0,103300.0,1.15911626]
[1747516970231,0.245907,103310.0,103300.0,1.0374511]
[1747516971545,0.1975279,103310.0,103300.0,1.0374511]
[1747516972135,0.2277279,103310.0,103300.0,1.0374511]
[1747516972741,0.2277279,103310.0,103300.0,1.07432931]
[1747516974830,0.004,103310.0,103300.0,1.76485963]
[1747516975132,0.004,103310.0,103300.0,2.01485963]
[1747516975538,0.0321,103320.0,103310.0,0.1935124]
[1747516975740,0.0321,103320.0,103310.0,0.97889756]
[1747516975930,0.0321,103320.0,103310.0,1.07568956]
[1747516976135,0.0321,103320.0,103310.0,1.25568956]
[1747516976735,0.0341,103320.0,103310.0,1.25568956]
[1747516977130,0.2275942,103320.0,103310.0,1.25568956]
[1747516977334,0.004,103320.0,103310.0,1.60608956]
[1747516978138,0.006,103320.0,103310.0,1.85608956]
[1747516980432,0.006,103320.0,103310.0,1.90661687]
[1747516981145,0.006,103320.0,103310.0,1.65661687]
[1747516981545,0.006,103320.0,103310.0,1.30621687]
[1747516983545,0.0391,103320.0,103310.0,1.30621687]
[1747516983943,0.3385399,103350.0,103340.0,0.1934568]
[1747516984139,0.52120506,103350.0,103340.0,0.1934568]
[1747516984340,0.73686352,103350.0,103340.0,0.2258568]
[1747516984642,0.73686352,103350.0,103340.0,0.1934568]
[1747516984843,0.73686352,103350.0,103340.0,0.2258568]
[1747516985038,0.74386352,103350.0,103340.0,0.2400364]
[1747516985234,0.72770032,103350.0,103340.0,0.2076364]
[1747516985440,0.72770032,103350.0,103340.0,0.5684364]
[1747516985441,0.60603516,103350.0,103340.0,0.5684364]
[1747516985742,0.67933762,103350.0,103340.0,0.64301929]
[1747516985943,0.67933762,103350.0,103340.0,0.67331929]
[1747516986143,0.67933762,103350.0,103340.0,0.85331929]
[1747516986742,0.68233762,103350.0,103340.0,0.85331929]
[1747516987249,0.51231196,103350.0,103340.0,0.85331929]
[1747516987639,0.31885846,103350.0,103340.0,0.85331929]
[1747516987842,0.48209476,103350.0,103340.0,0.97498445]
[1747516988049,0.073,103350.0,103340.0,1.30348961]
[1747516988245,0.073,103350.0,103340.0,1.18182445]
[1747516989751,0.0422,103350.0,103340.0,1.27858844]
[1747516990343,0.0392,103350.0,103340.0,1.27858844]
[1747516990546,0.0402,103350.0,103340.0,1.62898844]
[1747516991050,0.064,103350.0,103340.0,1.62898844]
[1747516991244,0.065,103350.0,103340.0,1.62898844]
[1747516992342,0.065,103350.0,103340.0,1.7506536]
[1747516992745,0.0342,103350.0,103340.0,1.7506536]
[1747516992945,0.2278233,103360.0,103350.0,0.1934386]
[1747516992946,0.0349,103360.0,103350.0,0.1934386]
[1747516993143,0.0349,103360.0,103350.0,1.25301576]
[1747516993652,0.0349,103360.0,103350.0,1.15626376]
[1747516994347,0.0349,103360.0,103350.0,1.27301576]
[1747516994547,0.2257011,103370.0,103360.0,0.1934198]
[1747516994745,0.44135956,103370.0,103360.0,0.8562198]
[1747516995146,0.44135956,103370.0,103360.0,1.0362198]
[1747516996454,0.47535956,103370.0,103360.0,1.0362198]
[1747516996752,0.47635956,103370.0,103360.0,1.0362198]
[1747516997555,0.50895956,103370.0,103360.0,1.0362198]
[1747516998958,0.50895956,103370.0,103360.0,1.07299448]
[1747516999952,0.50895956,103370.0,103360.0,0.97779448]
[1747517000149,0.50895956,103370.0,103360.0,1.21481448]
[1747517000550,0.50895956,103370.0,103360.0,1.24531448]
[1747517000753,0.50895956,103370.0,103360.0,1.27541448]
[1747517001258,0.50895956,103370.0,103360.0,1.28085664]
[1747517001461,0.50895956,103370.0,103360.0,1.4025218]
[1747517002263,0.50895956,103370.0,103360.0,1.28085664]
[1747517003361,0.50895956,103370.0,103360.0,1.24408196]
[1747517005568,0.50895956,103370.0,103360.0,1.29454519]
[1747517005869,0.50895956,103370.0,103360.0,1.29450519]
[1747517007060,0.50895956,103370.0,103360.0,1.11450519]
[1747517007465,0.50895956,103370.0,103360.0,1.10906303]
[1747517007666,0.50895956,103370.0,103360.0,1.14583771]
[1747517009177,0.50895956,103370.0,103360.0,1.32583771]
[1747517011580,0.63062472,103370.0,103360.0,1.32583771]
[1747517012382,0.99142472,103370.0,103360.0,0.46065781]
[1747517012585,0.99142472,103370.0,103360.0,0.26723791]
[1747517013282,0.99142472,103370.0,103360.0,0.03677468]
[1747517014182,1.17142472,103370.0,103360.0,0.03677468]
[1747517014482,1.17142472,103370.0,103360.0,0.04221684]
[1747517016072,1.35142472,103370.0,103360.0,0.04221684]
[1747517016386,1.17142472,103370.0,103360.0,0.05478722]
[1747517017085,0.81062472,103370.0,103360.0,0.05478722]
[1747517017381,1.3589854,103370.0,103360.0,0.05478722]
[1747517017584,1.3589854,103370.0,103360.0,0.04934506]
[1747517019274,0.1934199,103360.0,103350.0,0.20081384]
[1747517019478,1.07590868,103360.0,103350.0,0.19537168]
[1747517019976,1.07590868,103360.0,103350.0,0.00193508]
[1747517020586,1.10660868,103360.0,103350.0,0.00193508]
[1747517021293,1.10660868,103360.0,103350.0,0.00293508]
[1747517021586,1.10660868,103360.0,103350.0,0.00937724]
[1747517022082,1.51984868,103360.0,103350.0,0.00937724]
[1747517022477,1.51984868,103360.0,103350.0,0.00837724]
[1747517022690,1.62060068,103360.0,103350.0,0.00193508]
[1747517023279,1.80060068,103360.0,103350.0,0.00193508]
[1747517023587,1.80060068,103360.0,103350.0,0.00737724]
[1747517023796,1.80060068,103360.0,103350.0,0.04424144]
[1747517024788,1.80060068,103360.0,103350.0,0.03879928]
[1747517025483,1.58494222,103360.0,103350.0,0.03879928]
[1747517025688,1.80060068,103360.0,103350.0,0.03879928]
[1747517028289,1.80060068,103360.0,103350.0,0.00193508]
[1747517028477,1.70384868,103360.0,103350.0,0.00193508]
[1747517028681,1.80060068,103360.0,103350.0,0.00193508]
[1747517029576,1.70384868,103360.0,103350.0,0.00193508]
[1747517029780,1.70384868,103360.0,103350.0,0.00737724]
[1747517030787,1.82551384,103360.0,103350.0,0.00737724]
[1747517031090,0.1934573,103340.0,103330.0,0.11659159]
[1747517031287,0.76991576,103340.0,103330.0,0.14909159]
[1747517031488,0.37962246,103340.0,103330.0,0.14909159]
[1747517031685,0.95608092,103340.0,103330.0,0.14909159]
[1747517032080,0.95608092,103340.0,103330.0,0.32909159]
[1747517032286,1.07774608,103340.0,103330.0,0.29322739]
[1747517033991,1.07774608,103340.0,103330.0,0.29422739]
[1747517034294,0.95608092,103340.0,103330.0,0.29422739]
[1747517039501,1.19521576,103340.0,103330.0,0.29422739]
[1747517039803,1.47094608,103340.0,103330.0,0.29422739]
[1747517040099,1.47094608,103340.0,103330.0,0.11422739]
[1747517040804,1.88418608,103340.0,103330.0,0.11422739]
[1747517040998,1.88418608,103340.0,103330.0,0.1]
[1747517041302,1.88418608,103340.0,103330.0,0.28]
[1747517041998,2.00585124,103340.0,103330.0,0.182]
[1747517042203,0.193476,103330.0,103320.0,0.0332]
[1747517042399,0.89540632,103330.0,103320.0,0.0632]
[1747517042599,1.11106478,103330.0,103320.0,0.0947]
[1747517042903,0.98939962,103330.0,103320.0,0.0947]
[1747517043298,0.98939962,103330.0,103320.0,0.2747]
[1747517043500,0.98939962,103330.0,103320.0,0.2152]
[1747517043898,1.11106478,103330.0,103320.0,0.2172]
[1747517044099,1.11106478,103330.0,103320.0,0.0372]
[1747517047404,1.11106478,103330.0,103320.0,0.0693]
[1747517049304,0.89540632,103330.0,103320.0,0.0693]
[1747517049494,1.11106478,103330.0,103320.0,0.0693]
[1747517050007,1.11106478,103330.0,103320.0,0.0993]
[1747517050309,1.11106478,103330.0,103320.0,0.2793]
[1747517051909,0.98939962,103330.0,103320.0,0.2793]
[1747517052807,1.11106478,103330.0,103320.0,0.2793]
[1747517053510,0.86773446,103330.0,103320.0,0.2793]
[1747517053714,1.19591962,103330.0,103320.0,0.2793]
[1747517054695,1.19591962,103330.0,103320.0,0.2172]
[1747517054909,1.19591962,103330.0,103320.0,0.2491]
[1747517057302,0.83511962,103330.0,103320.0,0.2491]
[1747517057508,1.55671962,103330.0,103320.0,0.2491]
[1747517058414,0.83511962,103330.0,103320.0,0.2491]
[1747517058614,1.55671962,103330.0,103320.0,0.2491]
[1747517060211,1.19633446,103330.0,103320.0,0.25454216]
[1747517060414,1.73107962,103330.0,103320.0,0.25454216]
[1747517061312,1.51542116,103330.0,103320.0,0.25454216]
[1747517061518,1.73107962,103330.0,103320.0,0.25454216]
[1747517062216,1.76297962,103330.0,103320.0,0.25454216]
[1747517063921,1.77297962,103330.0,103320.0,0.25454216]
[1747517066218,1.89464478,103330.0,103320.0,0.25454216]
[1747517066522,1.77297962,103330.0,103320.0,0.25454216]
[1747517075332,1.05137962,103330.0,103320.0,0.25454216]
[1747517075533,1.77297962,103330.0,103320.0,0.25454216]
[1747517076934,1.05137962,103330.0,103320.0,0.25454216]
[1747517077123,1.77297962,103330.0,103320.0,0.25454216]
[1747517078435,1.77297962,103330.0,103320.0,0.28534216]
[1747517083333,2.13297962,103330.0,103320.0,0.28534216]
[1747517086832,2.13285962,103330.0,103320.0,0.28534216]
[1747517087334,2.01119446,103330.0,103320.0,0.28534216]
[1747517087638,2.13285962,103330.0,103320.0,0.28534216]
[1747517100443,0.1935134,103310.0,103300.0,0.0368642]
[1747517100636,0.9671134,103310.0,103300.0,0.1013642]
[1747517100842,1.12017856,103310.0,103300.0,0.1328642]
[1747517101041,1.51247856,103310.0,103300.0,0.1328642]
[1747517101239,1.72813702,103310.0,103300.0,0.3128642]
[1747517101443,1.63917186,103310.0,103300.0,0.3128642]
[1747517101639,1.76083702,103310.0,103300.0,0.3148642]
[1747517101944,1.36773287,103310.0,103300.0,0.3148642]
[1747517103044,1.36773287,103310.0,103300.0,0.279]